bitfinex/quotes_ETHUSD_20251012
["timestamp","ask_amount","ask_price","bid_price","bid_amount"]
[1760236491287,4.68592445,3750.2,3750.1,0.002]
[1760236491891,15.84578445,3750.2,3750.1,0.002]
[1760236492818,18.48669745,3750.2,3750.1,0.002]
[1760236493002,17.02419745,3750.2,3750.1,0.002]
[1760236493191,15.31630045,3750.2,3750.1,0.002]
[1760236493523,2.0194,3750.2,3750.1,0.002]
[1760236493707,1.92,3750.2,3750.1,0.002]
[1760236494422,2.66715998,3750.8,3750.1,0.6356]
[1760236494622,13.157325,3750.7,3750.1,0.6356]
[1760236494822,1.92,3750.3,3750.1,0.002]
[1760236495022,0.0994,3750.2,3750.1,0.002]
[1760236495391,0.1328,3750.2,3750.1,0.002]
[1760236497626,4.81872445,3750.2,3750.1,0.002]
[1760236497824,6.94938745,3750.2,3750.1,0.002]
[1760236498042,19.5835384,3750.2,3750.1,0.002]
[1760236498723,33.7038714,3750.2,3750.1,0.002]
[1760236498917,28.4690294,3750.2,3750.1,0.002]
[1760236499118,22.4213334,3750.2,3750.1,0.002]
[1760236499421,5.351659,3750.2,3750.1,0.002]
[1760236499620,1.92,3750.2,3750.1,0.002]
[1760236499847,4.58652445,3750.2,3750.1,0.002]
[1760236500262,4.68592445,3750.2,3750.1,0.002]
[1760236500459,6.71226645,3750.2,3750.1,0.002]
[1760236500609,4.68592445,3750.2,3750.1,0.002]
[1760236500813,16.55701145,3750.2,3750.1,0.002]
[1760236501256,25.49109645,3750.2,3750.1,0.002]
[1760236501438,10.31366345,3750.2,3750.1,0.002]
[1760236502027,4.68592445,3750.2,3750.1,0.002]
[1760236502229,8.29083345,3750.2,3750.1,0.002]
[1760236502433,2.0194,3750.2,3750.1,0.002]
[1760236502878,1.92,3750.2,3750.1,0.002]
[1760236503484,4.68592445,3750.2,3750.1,0.002]
[1760236503865,10.63200945,3750.2,3750.1,0.002]
[1760236504049,9.70030345,3750.2,3750.1,0.002]
[1760236504668,4.68592445,3750.2,3750.1,0.002]
[1760236506047,2.66673777,3749.9,3749.8,0.002]
[1760236506267,16.31718277,3749.9,3749.8,0.002]
[1760236506470,16.42558277,3749.9,3749.8,0.002]
[1760236507375,18.55620918,3749.9,3749.8,0.002]
[1760236507779,14.34431618,3749.9,3749.8,0.002]
[1760236508079,9.92575618,3749.9,3749.8,0.002]
[1760236508671,5.34044118,3749.9,3749.8,0.002]
[1760236508870,7.76023518,3749.9,3749.8,0.002]
[1760236509067,5.34044118,3749.9,3749.8,0.002]
[1760236509272,0.75370341,3749.9,3749.8,0.002]
[1760236509580,2.66626356,3750.6,3749.8,0.002]
[1760236509764,2.66714164,3750.8,3749.9,0.6336]
[1760236509765,0.1328,3750.0,3749.9,0.6336]
[1760236510097,0.001,3750.8,3750.5,0.6336]
[1760236510292,0.001,3750.8,3750.5,1.0777]
[1760236510512,0.001,3750.8,3750.3,0.1328]
[1760236510671,0.1328,3750.3,3749.8,0.002]
[1760236510871,2.66640526,3750.4,3749.8,0.002]
[1760236511178,0.1328,3749.9,3749.8,0.002]
[1760236511381,0.1084,3750.3,3749.8,0.002]
[1760236511769,2.77513777,3749.9,3749.8,0.002]
[1760236512155,4.69513777,3749.9,3749.8,0.002]
[1760236512360,2.0284,3749.9,3749.8,0.002]
[1760236512590,4.69513777,3749.9,3749.8,0.002]
[1760236512911,1.92,3749.9,3749.8,0.002]
[1760236513806,1.92,3749.9,3749.8,0.6356]
[1760236514164,4.69513777,3749.9,3749.8,0.002]
[1760236514700,26.33555511,3749.9,3749.8,0.002]
[1760236515075,21.00987111,3749.9,3749.8,0.002]
[1760236515586,19.77557711,3749.9,3749.8,0.002]
[1760236515769,20.19387878,3749.9,3749.8,0.002]
[1760236516162,2.44670167,3749.9,3749.8,0.002]
[1760236516419,10.86553944,3749.9,3749.8,0.002]
[1760236516579,23.80145678,3749.9,3749.8,0.002]
[1760236517215,27.8421904,3749.4,3749.3,0.002]
[1760236517423,27.0011144,3749.4,3749.3,0.002]
[1760236517579,21.5639184,3749.4,3749.3,0.002]
[1760236517798,21.98231334,3749.4,3749.3,0.002]
[1760236518198,5.11388834,3749.4,3749.3,0.002]
[1760236518391,16.27866334,3749.4,3749.3,0.002]
[1760236518610,26.32196934,3749.4,3749.3,0.002]
[1760236518933,25.76866334,3749.4,3749.3,0.002]
[1760236519114,24.53766334,3749.4,3749.3,0.002]
[1760236519322,2.66730682,3749.1,3749.0,1e-08]
[1760236519502,17.34562143,3748.7,3746.8,0.002]
[1760236519830,8.38598143,3748.7,3747.0,0.6336]
[1760236520025,8.49438143,3748.7,3746.8,0.002]
[1760236520206,8.91284659,3748.7,3746.8,0.002]
[1760236520596,2.66830322,3747.7,3746.8,0.002]
[1760236520798,4.58830322,3747.7,3746.8,0.002]
[1760236521050,1.92,3747.6,3746.8,0.002]
[1760236521190,4.58887293,3746.9,3746.8,0.002]
[1760236521604,4.69847293,3746.9,3746.8,0.002]
[1760236521835,14.17831893,3746.9,3746.8,0.002]
[1760236522241,7.58481093,3746.9,3746.8,0.002]
[1760236522638,29.76193393,3746.9,3746.8,0.002]
[1760236523128,28.49143593,3746.9,3746.5,0.002]
[1760236523444,17.20848412,3746.4,3746.3,0.002]
[1760236523612,15.95943812,3746.4,3746.3,0.002]
[1760236523812,13.30950012,3746.4,3746.3,0.002]
[1760236524006,6.75799012,3746.4,3746.3,0.002]
[1760236524211,7.17667105,3746.4,3746.3,0.002]
[1760236524409,2.44828093,3746.4,3746.3,0.002]
[1760236524822,0.52828093,3746.4,3746.3,0.002]
[1760236525442,3.19751005,3746.4,3746.3,0.002]
[1760236525742,7.42051005,3746.4,3746.3,0.002]
[1760236525928,5.11751005,3746.4,3746.3,0.002]
[1760236526320,2.44828093,3746.4,3746.3,0.002]
[1760236526721,2.33868093,3746.4,3746.3,0.002]
[1760236527452,2.44828093,3746.4,3746.3,0.002]
[1760236528422,5.11751005,3746.4,3746.3,0.002]
[1760236528755,2.44828093,3746.4,3746.3,0.002]
[1760236529114,5.11751005,3746.4,3746.3,0.002]
[1760236529357,10.78917805,3746.4,3746.3,0.002]
[1760236529761,7.97719405,3746.4,3746.3,0.002]
[1760236530123,7.55851312,3746.4,3746.3,0.002]
[1760236530323,7.55851312,3746.4,3746.0,0.002]
[1760236530324,2.66937162,3746.2,3746.0,0.002]
[1760236530631,2.66937162,3746.2,3745.7,0.002]
[1760236530632,2.66965668,3745.8,3745.7,0.002]
[1760236530821,2.66965668,3745.8,3745.3,0.002]
[1760236530822,29.58983379,3745.4,3745.3,0.002]
[1760236531027,4.59022696,3745.0,3744.9,0.002]
[1760236531224,1.92,3745.0,3744.9,0.002]
[1760236531423,2.019,3745.0,3744.9,0.002]
[1760236531623,7.17926096,3745.0,3744.9,0.002]
[1760236531831,2.019,3745.0,3744.9,0.002]
[1760236532544,1.92,3745.0,3744.9,0.002]
[1760236532963,0.1328,3745.0,3744.9,3.63645318]
[1760236533157,0.099,3746.0,3745.6,0.6336]
[1760236533352,1.92,3746.3,3745.6,0.6336]
[1760236533558,0.1328,3745.6,3745.5,0.6336]
[1760236533762,0.1003,3745.6,3744.9,0.002]
[1760236533942,2.0203,3745.6,3744.9,0.002]
[1760236534145,2.77009966,3745.6,3744.9,0.002]
[1760236534341,0.1003,3745.6,3744.9,0.002]
[1760236534678,4.68980856,3746.1,3745.2,2.67006971]
[1760236534888,4.68980856,3746.1,3744.9,2.67228523]
[1760236534889,0.1003,3746.1,3745.5,2.66982817]
[1760236535094,0.41873233,3745.8,3745.1,0.6336]
[1760236535380,1.92,3745.6,3744.9,0.002]
[1760236535862,2.77003425,3745.7,3744.9,0.002]
[1760236535863,0.1003,3745.7,3744.9,0.002]
[1760236536063,0.1003,3745.7,3745.2,0.6336]
[1760236536265,2.33873233,3745.8,3744.9,0.6356]
[1760236536266,2.7701138,3745.6,3744.9,0.002]
[1760236536512,0.1003,3745.6,3744.9,0.002]
[1760236536683,0.41873233,3745.8,3744.9,0.6356]
[1760236536850,0.1003,3746.1,3744.9,0.6356]
[1760236537044,0.4187286,3746.2,3745.6,0.6336]
[1760236537250,1.92,3746.1,3745.6,0.6336]
[1760236537451,0.1003,3746.0,3744.9,0.002]
[1760236537646,0.4187286,3746.2,3745.9,2.66952444]
[1760236538051,0.2256,3746.7,3745.1,0.6336]
[1760236538349,0.2256,3746.7,3745.4,2.66992853]
[1760236538350,0.1015,3746.2,3745.4,2.66992853]
[1760236538550,2.66917446,3746.5,3745.7,0.6336]
[1760236538970,1.92,3746.3,3745.7,0.6336]
[1760236539147,4.58930317,3746.3,3745.8,0.6336]
[1760236539354,0.1015,3746.2,3745.2,2.67002202]
[1760236539562,2.6695223,3746.0,3745.1,0.6336]
[1760236539885,2.66931649,3746.3,3744.9,0.002]
[1760236539886,2.56426683,3746.7,3745.3,0.6336]
[1760236540049,0.64426683,3746.7,3746.0,2.6694979]
[1760236540253,0.64426683,3746.7,3744.9,0.002]
[1760236540254,0.41866683,3746.7,3746.2,0.6336]
[1760236540457,0.1015,3746.8,3746.2,0.6336]
[1760236540690,0.1015,3746.8,3746.2,3.30295811]
[1760236540866,0.6429224,3747.2,3745.9,0.6336]
[1760236541187,1.92,3746.9,3746.2,3.30296572]
[1760236541400,1.92,3746.6,3745.6,0.6336]
[1760236541693,0.104,3747.4,3746.7,0.6336]
[1760236541892,0.104,3747.4,3746.2,2.66936232]
[1760236542188,1.92,3747.1,3746.4,0.6336]
[1760236542392,2.6686803,3747.2,3746.4,0.6336]
[1760236542579,1.92,3746.8,3746.0,2.66949855]
[1760236542779,0.41857902,3747.3,3745.2,0.4681]
[1760236542992,1.92,3746.5,3744.5,0.002]
[1760236543193,2.66952635,3746.0,3744.9,2.6722959]
[1760236543492,0.3248,3745.9,3744.9,0.6356]
[1760236543799,0.1328,3745.3,3744.9,2.67227591]
[1760236544040,0.1328,3745.3,3745.1,0.6336]
[1760236544159,0.1328,3745.3,3745.2,3.30368437]
[1760236544358,0.1328,3745.3,3744.9,0.002]
[1760236544359,0.1328,3745.3,3744.9,2.67228345]
[1760236544655,0.1328,3745.3,3745.0,2.67020189]
[1760236544868,0.1328,3745.3,3744.9,0.002]
[1760236545154,1.92,3746.1,3744.9,0.002]
[1760236545155,0.1011,3745.2,3744.9,0.002]
[1760236545359,2.0211,3745.2,3744.9,0.002]
[1760236545668,0.1011,3745.1,3744.9,0.002]
[1760236545864,1.92,3745.2,3744.9,0.002]
[1760236546087,2.146,3745.5,3744.9,0.6356]
[1760236546393,2.146,3745.5,3744.9,0.002]
[1760236546691,1.92,3745.5,3744.9,0.002]
[1760236546876,0.1328,3745.2,3745.1,0.6336]
[1760236547282,0.1328,3745.2,3745.1,3.30375567]
[1760236547992,0.1328,3745.2,3744.9,0.002]
[1760236548191,0.1011,3745.1,3744.9,0.002]
[1760236548572,0.1011,3745.0,3744.9,0.002]
[1760236549679,2.77132696,3745.0,3744.9,0.002]
[1760236550199,2.0211,3745.0,3744.9,0.002]
[1760236550401,1.92,3745.0,3744.9,0.002]
[1760236550571,4.69132696,3745.0,3744.9,0.002]
[1760236550890,2.0211,3745.0,3744.9,0.002]
[1760236551295,2.6705122,3744.6,3744.5,0.002]
[1760236551510,4.5907975,3744.2,3744.1,0.002]
[1760236551902,4.6918975,3744.2,3744.1,0.002]
[1760236552098,13.35774285,3743.8,3743.7,0.002]
[1760236552420,10.69449285,3743.8,3743.7,0.002]
[1760236552919,8.70002085,3743.8,3743.7,0.002]
[1760236553090,28.43368285,3743.8,3743.7,0.002]
[1760236553291,22.98086185,3743.8,3743.7,0.002]
[1760236553820,23.39986163,3743.8,3743.7,0.002]
[1760236554119,32.32961163,3743.8,3743.7,0.002]
[1760236554319,17.52728561,3743.4,3743.3,0.002]
[1760236554617,12.611456,3743.3,3741.5,2.67266275]
[1760236554800,0.1336,3741.6,3741.0,2.80663014]
[1760236554978,0.1336,3741.3,3741.2,2.67293916]
[1760236555174,0.5232859,3742.9,3741.2,0.4475]
[1760236555379,0.1042,3743.3,3741.2,0.4475]
[1760236555720,0.1042,3743.3,3742.8,2.67178579]
[1760236555922,0.1042,3743.3,3742.9,2.67171999]
[1760236556223,0.41907364,3743.4,3743.3,2.67143963]
[1760236556425,0.2024,3744.8,3744.1,0.6336]
[1760236556717,0.2024,3744.8,3742.9,0.267172]
[1760236556718,11.433366,3744.4,3742.9,0.267172]
[1760236556884,2.67127345,3743.6,3742.6,2.6719354]
[1760236557210,0.3086,3743.5,3741.7,0.4475]
[1760236557413,0.3086,3743.5,3742.6,0.6336]
[1760236557615,0.1011,3743.5,3742.6,0.6336]
[1760236557801,0.1011,3743.5,3742.3,0.6336]
[1760236558005,0.1011,3743.5,3742.9,2.67166744]
[1760236558521,0.1011,3743.5,3742.8,0.6336]
[1760236558814,1.92,3743.4,3742.8,0.6336]
[1760236558983,0.1011,3743.5,3741.7,3.12008074]
[1760236559207,1.92,3743.1,3741.8,0.6336]
[1760236559413,1.92,3743.1,3741.8,0.33063136]
[1760236559654,0.1022,3743.0,3742.3,3.30572526]
[1760236559841,1.92,3742.8,3741.6,2.67261826]
[1760236560158,2.67208435,3742.4,3741.0,0.6336]
[1760236560306,12.70490754,3743.1,3740.8,0.4475]
[1760236560307,0.1022,3742.3,3740.8,0.4475]
[1760236560709,0.1022,3742.2,3740.2,0.4475]
[1760236561014,4.59251712,3741.8,3740.8,2.67318474]
[1760236561215,0.1022,3742.1,3740.2,0.4475]
[1760236561460,8.648834,3741.9,3740.3,2.67351909]
[1760236561614,2.667842,3741.7,3740.7,2.67327139]
[1760236561813,1.92,3741.4,3740.4,2.67344519]
[1760236562014,1.92,3741.4,3740.6,2.67330908]
[1760236562454,0.1022,3741.6,3740.8,2.6731938]
[1760236562857,0.1022,3741.6,3740.2,1.0811]
[1760236563028,2.0222,3741.6,3741.0,0.6336]
[1760236563329,2.67272484,3741.5,3740.7,0.6336]
[1760236563508,0.1022,3741.6,3740.7,0.6336]
[1760236563710,4.59272833,3741.5,3740.3,0.6336]
[1760236563918,4.59272833,3741.5,3740.4,3.30711085]
[1760236564142,4.59272833,3741.5,3739.9,2.67380752]
[1760236564346,2.67292121,3741.3,3740.3,2.67353986]
[1760236564556,0.1022,3741.2,3739.2,0.2261]
[1760236564715,1.92,3741.0,3740.1,2.67371976]
[1760236564910,0.1022,3741.1,3739.2,0.2261]
[1760236565227,0.1022,3741.1,3740.5,2.67337317]
[1760236565532,0.1022,3741.1,3740.4,3.30711085]
[1760236565533,0.1336,3740.5,3740.4,3.30711085]
[1760236565925,0.1336,3740.5,3740.3,3.30716712]
[1760236566254,0.1336,3740.5,3740.4,3.30711085]
[1760236566550,0.1336,3740.5,3740.4,0.6336]
[1760236566760,0.1336,3740.5,3740.4,3.30711085]
[1760236568059,1.92,3741.5,3741.4,2.67279627]
[1760236568218,2.7745002,3742.1,3741.4,0.6336]
[1760236568418,0.5214126,3742.1,3741.4,0.6336]
[1760236568615,0.4192126,3742.1,3741.5,3.30632484]
[1760236568820,0.4192126,3742.1,3742.0,0.6336]
[1760236569034,1.92,3742.7,3742.1,0.6336]
[1760236569234,2.67180509,3742.8,3742.1,0.6336]
[1760236569458,2.67159303,3743.1,3741.1,0.6336]
[1760236569459,0.1022,3742.6,3741.1,0.6336]
[1760236569657,0.1022,3742.6,3741.4,0.6336]
[1760236569859,1.92,3742.4,3741.5,0.6336]
[1760236570057,2.008034,3742.9,3741.5,0.6336]
[1760236570375,0.1022,3742.4,3741.6,0.6336]
[1760236570576,0.1022,3742.3,3740.8,0.6336]
[1760236570856,15.37650009,3743.1,3741.1,0.6336]
[1760236570857,2.67243054,3742.0,3741.1,0.6336]
[1760236571063,2.67246877,3741.9,3741.1,0.6336]
[1760236571360,1.92,3742.3,3740.9,0.6336]
[1760236571657,0.1022,3742.8,3741.5,0.6336]
[1760236571859,0.41909722,3742.4,3742.2,0.6336]
[1760236572059,0.41909722,3742.4,3742.3,3.30575348]
[1760236572567,4.59145182,3743.3,3742.5,2.6720028]
[1760236572741,2.67145182,3743.3,3742.5,2.6720028]
[1760236573072,0.1022,3743.4,3742.2,0.6336]
[1760236573227,1.92,3743.1,3742.4,2.67207026]
[1760236573926,1.92,3742.9,3741.3,0.6336]
[1760236574151,2.77385888,3743.0,3741.5,0.6336]
[1760236574351,1.92,3742.4,3741.7,2.67257227]
[1760236574552,1.92,3742.9,3742.1,2.67222716]
[1760236574785,2.0222,3743.2,3742.3,2.67208905]
[1760236574967,4.69377569,3743.2,3742.4,2.67208183]
[1760236575151,0.1022,3743.2,3742.4,2.67208183]
[1760236575352,1.92,3743.1,3742.3,2.67213987]
[1760236575793,1.92,3743.1,3742.4,2.67205325]
[1760236576149,1.92,3743.1,3742.2,3.30582457]
[1760236576150,0.1022,3743.2,3741.7,0.4475]
[1760236576354,0.1022,3743.2,3742.7,0.6336]
[1760236576554,0.1022,3743.1,3741.8,0.6336]
[1760236576749,0.1022,3743.1,3741.0,2.67307852]
[1760236576750,1.92,3742.8,3741.4,0.6336]
[1760236577065,1.92,3743.0,3742.4,0.6336]
[1760236577672,2.67180721,3742.8,3742.3,0.6336]
[1760236577896,5.082222,3743.2,3742.3,0.6336]
[1760236578071,4.59158269,3743.1,3742.4,0.6336]
[1760236578282,4.59158269,3743.1,3741.0,2.67307699]
[1760236578283,0.1022,3743.2,3741.8,0.6336]
[1760236578489,0.1022,3743.2,3742.1,2.67224641]
[1760236578651,0.2065,3743.7,3742.8,0.6336]
[1760236578652,2.77348186,3743.6,3742.8,0.6336]
[1760236578848,2.0222,3743.5,3741.4,0.6336]
[1760236579062,2.67194708,3742.6,3741.5,0.6336]
[1760236579268,1.92,3742.4,3741.4,0.37540862]
[1760236579490,0.1022,3742.5,3741.8,0.6336]
[1760236579697,0.1022,3742.5,3741.8,3.30608726]
[1760236579862,0.1022,3742.5,3741.9,2.67242602]
[1760236580058,0.1022,3743.1,3741.6,0.4475]
[1760236580253,1.92,3742.6,3742.0,0.6336]
[1760236580455,1.92,3742.6,3742.0,3.30595053]
[1760236580655,1.92,3742.7,3742.0,3.30595053]
[1760236581153,2.67189894,3742.7,3742.0,3.30595053]
[1760236581584,0.1022,3742.6,3741.9,0.6336]
[1760236581813,1.92,3742.4,3741.9,0.6336]
[1760236581972,0.1022,3742.3,3741.9,0.6336]
[1760236582177,0.1022,3743.1,3742.5,0.6336]
[1760236582415,1.92,3743.0,3742.5,0.6336]
[1760236582616,1.92,3742.7,3742.2,0.6336]
[1760236582786,0.1022,3742.7,3742.2,0.6336]
[1760236582990,0.1022,3742.7,3742.0,0.6336]
[1760236583186,0.1022,3742.7,3741.9,0.6336]
[1760236583425,2.0222,3742.7,3742.1,0.6336]
[1760236583624,2.0222,3742.7,3742.0,0.6336]
[1760236583780,2.0222,3742.7,3742.0,3.30594789]
[1760236585020,2.0222,3742.7,3742.2,0.6336]
[1760236585193,4.59189037,3742.7,3742.1,0.6336]
[1760236585396,4.69409037,3742.7,3742.1,0.6336]
[1760236587220,2.0222,3742.7,3742.1,0.6336]
[1760236587623,2.0222,3742.7,3742.1,3.30587964]
[1760236587624,1.92,3742.7,3742.1,3.30587964]
[1760236588286,0.41906076,3742.9,3741.8,3.30606085]
[1760236588491,0.1022,3742.7,3742.0,0.6336]
[1760236588687,0.1022,3742.7,3742.2,0.6336]
[1760236588923,0.1022,3742.7,3742.1,2.6722963]
[1760236588924,0.1336,3742.3,3742.1,0.6336]
[1760236590347,0.1336,3742.3,3742.0,0.6336]
[1760236590768,0.1336,3742.3,3741.9,0.002]
[1760236590769,0.1022,3742.2,3741.9,0.002]
[1760236591121,2.67236771,3742.0,3741.9,0.002]
[1760236591344,4.59236771,3742.0,3741.9,0.002]
[1760236591619,4.69456771,3742.0,3741.9,0.002]
[1760236593318,1.92,3742.0,3741.9,0.002]
[1760236593929,1.92,3742.0,3741.9,0.6356]
[1760236594448,1.92,3742.0,3741.9,0.002]
[1760236594953,1.92,3742.0,3741.9,0.6356]
[1760236595958,2.0222,3742.0,3741.9,0.002]
[1760236596123,4.69456771,3742.0,3741.9,0.002]
[1760236596791,35.44210625,3742.0,3741.9,0.002]
[1760236597000,35.49952775,3742.0,3741.9,0.002]
[1760236597294,26.29517375,3742.0,3741.9,0.002]
[1760236597852,45.18866375,3742.0,3741.9,0.002]
[1760236598201,37.78604075,3742.0,3741.9,0.002]
[1760236598555,37.78604075,3742.0,3741.5,1e-08]
[1760236598556,28.08910141,3741.6,3741.5,1e-08]
[1760236598775,2.67293916,3741.2,3741.1,0.002]
[1760236599096,29.1547007,3741.2,3741.1,0.002]
[1760236599250,21.40644887,3741.2,3741.1,0.002]
[1760236599451,21.50864887,3741.2,3741.1,0.002]
[1760236600184,4.69513916,3741.2,3741.1,0.002]
[1760236600374,7.08053336,3741.2,3741.1,0.002]
[1760236600585,6.94467816,3741.2,3741.1,0.002]
[1760236601165,12.17093416,3741.2,3741.1,0.002]
[1760236601392,9.46020716,3741.2,3741.1,0.002]
[1760236601595,6.94467816,3741.2,3741.1,0.002]
[1760236602190,5.11443241,3741.2,3741.1,0.002]
[1760236602371,4.69513916,3741.2,3741.1,0.002]
[1760236602576,6.94467816,3741.2,3741.1,0.002]
[1760236602755,4.69513916,3741.2,3741.1,0.002]
[1760236603153,2.0222,3741.2,3741.1,0.002]
[1760236603594,13.12419353,3741.9,3741.1,0.002]
[1760236603595,5.82507924,3741.7,3741.1,0.002]
[1760236603801,0.1022,3741.8,3741.1,0.002]
[1760236604003,0.41919597,3742.0,3741.3,0.6336]
[1760236604153,0.41919597,3742.0,3741.6,0.6336]
[1760236604402,0.1022,3742.8,3742.0,0.6336]
[1760236604751,1.92,3742.4,3741.7,0.6336]
[1760236604953,0.1022,3742.4,3741.3,2.67286771]
[1760236605245,0.1022,3742.3,3741.1,0.002]
[1760236605444,2.6723548,3742.1,3741.1,0.002]
[1760236605645,1.92,3741.9,3741.3,0.6336]
[1760236606245,0.41914022,3742.1,3741.2,0.6336]
[1760236606453,6.360051,3741.7,3741.1,0.002]
[1760236606605,4.59293916,3741.2,3741.1,0.002]
[1760236607243,4.69513916,3741.2,3741.1,0.002]
[1760236607412,7.88531116,3741.2,3741.1,0.002]
[1760236607602,2.0222,3741.2,3741.1,0.002]
[1760236607804,1.92,3741.2,3741.1,0.002]
[1760236608928,0.1022,3741.9,3741.2,2.67288347]
[1760236609168,0.1336,3741.2,3741.1,0.6356]
[1760236609366,0.1336,3741.2,3741.1,3.30861061]
[1760236609570,0.1336,3741.2,3741.1,3.90678688]
[1760236611268,0.1336,3741.2,3741.1,0.002]
[1760236613039,0.1336,3741.2,3741.1,3.30861061]
[1760236613754,0.1336,3741.2,3741.1,0.6356]
[1760236613955,0.1336,3741.2,3741.1,3.30861061]
[1760236614267,0.41918224,3742.0,3741.2,0.6336]
[1760236614452,0.41918224,3742.0,3741.9,0.6336]
[1760236614655,0.41918224,3742.0,3741.7,0.6336]
[1760236614868,0.41918224,3742.0,3741.9,3.30603913]
[1760236615043,0.41918224,3742.0,3741.9,4.44037089]
[1760236615436,0.1022,3743.0,3742.4,0.6336]
[1760236615647,0.1022,3743.0,3742.3,0.6336]
[1760236615841,2.67180438,3742.8,3742.3,0.6336]
[1760236616195,0.1022,3743.1,3742.4,0.6336]
[1760236616544,0.1022,3743.1,3741.6,0.4301]
[1760236616545,2.0222,3743.1,3741.7,0.6336]
[1760236616741,1.92,3742.9,3742.3,3.30574664]
[1760236616947,2.77379344,3743.1,3742.4,0.6336]
[1760236617276,1.92,3742.9,3742.2,0.6336]
[1760236617885,0.1022,3743.1,3742.4,0.6336]
[1760236618370,2.67165945,3743.0,3742.4,0.6336]
[1760236618683,0.1022,3743.1,3742.5,0.6336]
[1760236618845,0.1022,3743.1,3741.9,0.6336]
[1760236619043,2.67155215,3743.2,3742.4,2.67202425]
[1760236619354,1.92,3743.0,3742.5,0.6336]
[1760236619556,1.92,3742.8,3742.3,0.6336]
[1760236619756,0.1022,3742.7,3742.3,0.6336]
[1760236619956,1.92,3743.0,3742.2,0.6336]
[1760236620172,2.67165444,3743.0,3742.3,0.6336]
[1760236620374,1.92,3743.1,3742.3,3.30574407]
[1760236620588,4.59159236,3743.1,3742.3,3.30574407]
[1760236620761,1.92,3742.9,3742.3,3.30574407]
[1760236621087,0.42007218,3743.3,3742.5,0.6336]
[1760236621318,0.001,3743.3,3743.1,0.6336]
[1760236621593,0.001,3743.3,3743.2,3.735211]
[1760236621750,0.001,3743.3,3743.2,0.6336]
[1760236621952,0.001,3743.3,3743.2,3.305111]
[1760236622289,0.1052,3743.3,3742.1,0.2232]
[1760236622466,0.001,3743.3,3742.9,0.6336]
[1760236622970,0.1042,3743.2,3741.8,0.4301]
[1760236623209,2.0242,3743.1,3741.3,0.4301]
[1760236623404,1.92,3742.5,3741.3,0.4301]
[1760236623713,12.98406692,3743.2,3741.3,0.4301]
[1760236623714,1.92,3742.9,3741.3,0.4301]
[1760236623878,4.59161329,3743.1,3741.6,2.67265341]
[1760236624077,0.1328,3743.0,3742.4,0.6336]
[1760236624313,0.1328,3743.0,3742.8,0.6336]
[1760236624474,0.1328,3743.0,3742.5,0.6336]
[1760236624674,0.1328,3743.0,3742.5,3.30559872]
[1760236624923,1.921,3743.1,3743.0,0.6336]
[1760236624924,0.001,3743.1,3743.0,0.6336]
[1760236625220,0.001,3743.1,3743.0,3.73535375]
[1760236625432,0.001,3743.1,3742.9,2.67171642]
[1760236625590,0.001,3743.1,3743.0,0.6336]
[1760236625781,0.001,3743.1,3743.0,3.73535375]
[1760236626117,0.001,3743.3,3743.2,3.305111]
[1760236626518,0.001,3743.3,3743.2,0.7664]
[1760236627442,0.001,3743.3,3741.6,2.67263]
[1760236627443,1.92,3742.8,3741.7,0.4301]
[1760236627753,1.92,3743.2,3741.7,0.4301]
[1760236627961,1.92,3742.8,3742.0,2.67235858]
[1760236628319,1.92,3742.8,3742.1,0.6336]
[1760236628561,1.92,3742.3,3741.6,2.67259431]
[1760236628854,1.92,3742.6,3742.0,2.67230735]
[1760236629059,2.67179134,3742.9,3742.0,2.67230513]
[1760236629363,0.52616034,3743.1,3741.6,0.4301]
[1760236629655,2.67222084,3742.3,3741.4,2.67274244]
[1760236629819,4.59213972,3742.4,3741.5,0.6336]
[1760236630165,2.0271,3742.5,3741.1,0.002]
[1760236630459,2.67293916,3741.2,3741.1,0.002]
[1760236630757,1.92,3741.2,3741.1,0.002]
[1760236631316,4.59293916,3741.2,3741.1,0.002]
[1760236631522,4.70003916,3741.2,3741.1,0.002]
[1760236634349,2.67322497,3740.8,3740.7,0.002]
[1760236634523,4.59343937,3740.5,3740.4,0.002]
[1760236634953,4.70053937,3740.5,3740.4,0.002]
[1760236635563,4.70053937,3740.5,3740.0,0.002]
[1760236635564,4.59351085,3740.4,3740.0,0.002]
[1760236635734,7.0854983,3740.1,3740.0,0.002]
[1760236635935,17.57779222,3740.1,3740.0,0.002]
[1760236636165,17.68489222,3740.1,3740.0,0.002]
[1760236636348,2.0271,3740.1,3740.0,0.002]
[1760236636552,1.92,3740.1,3740.0,0.002]
[1760236636727,0.52645687,3740.5,3740.0,0.002]
[1760236636728,0.41935687,3740.5,3740.0,3.30939679]
[1760236637064,0.41935687,3740.5,3740.1,0.6336]
[1760236637367,0.1071,3741.6,3740.1,0.6336]
[1760236637660,0.41927616,3741.7,3740.4,0.6336]
[1760236637862,0.1336,3741.0,3740.9,3.30675351]
[1760236638026,0.1336,3741.4,3741.3,0.6336]
[1760236638233,0.1336,3741.4,3741.3,3.30646771]
[1760236638443,0.1336,3741.4,3740.9,0.6336]
[1760236638639,0.1336,3741.4,3741.0,0.6336]
[1760236638862,2.77913949,3742.5,3741.5,0.6336]
[1760236639070,0.1336,3741.8,3741.4,0.6336]
[1760236639376,0.1071,3743.0,3741.7,0.6336]
[1760236639577,0.1336,3742.4,3742.3,0.6336]
[1760236640066,0.001,3743.3,3742.5,3.30558763]